[Event "Titled Tuesday Blitz January 10 Late 2023"]
[White "Saveliev, Alexei"]
[Black "Gorodetzky, David"]
[WhiteFideId "24128546"]
[BlackFideId "2813416"]
[WhiteElo "2385"]
[BlackElo "2485"]
[Result "0-1"]
[Round "03"]
[TimeControl "180+2"]
[Date "2023.01.10"]
[WhiteClock "0:01:10"]
[BlackClock "0:00:24"]

1. c4 {[%clk 0:00:00]}  a6 {[%clk 0:00:00]} 2. Nc3 {[%clk 0:03:00]}  e6 {[%clk 0:02:59]} 3. d4 {[%clk 0:03:01]}  d5 {[%clk 0:02:58]} 4. cxd5 {[%clk 0:03:01]}  exd5 {[%clk 0:02:58]} 5. Nf3 {[%clk 0:03:00]}  Nf6 {[%clk 0:02:58]} 6. Bg5 {[%clk 0:03:01]}  c6 {[%clk 0:02:57]} 7. Qc2 {[%clk 0:03:01]}  Nbd7 {[%clk 0:02:57]} 8. e3 {[%clk 0:03:01]}  Be7 {[%clk 0:02:56]} 9. Bd3 {[%clk 0:03:02]}  O-O {[%clk 0:02:55]} 10. O-O {[%clk 0:03:02]}  h6 {[%clk 0:02:55]} 11. Bh4 {[%clk 0:03:03]}  Ne8 {[%clk 0:02:55]} 12. Bg3 {[%clk 0:03:03]}  Bd6 {[%clk 0:02:56]} 13. Rab1 {[%clk 0:03:02]}  Bxg3 {[%clk 0:02:53]} 14. hxg3 {[%clk 0:03:01]}  Nd6 {[%clk 0:02:52]} 15. b4 {[%clk 0:03:02]}  Qe7 {[%clk 0:02:53]} 16. a4 {[%clk 0:03:02]}  Nb6 {[%clk 0:02:53]} 17. b5 {[%clk 0:03:01]}  axb5 {[%clk 0:02:35]} 18. axb5 {[%clk 0:03:01]}  Nbc4 {[%clk 0:02:34]} 19. bxc6 {[%clk 0:03:02]}  bxc6 {[%clk 0:02:35]} 20. Ra1 {[%clk 0:03:01]}  Rb8 {[%clk 0:02:33]} 21. Rfb1 {[%clk 0:02:55]}  Bg4 {[%clk 0:02:32]} 22. e4 {[%clk 0:02:52]}  Rxb1+ {[%clk 0:02:32]} 23. Rxb1 {[%clk 0:02:43]}  Na3 {[%clk 0:02:27]} 24. Qb2 {[%clk 0:02:44]}  Nxb1 {[%clk 0:02:27]} 25. Qxb1 {[%clk 0:02:43]}  dxe4 {[%clk 0:02:26]} 26. Nxe4 {[%clk 0:02:43]}  Nxe4 {[%clk 0:02:24]} 27. Bxe4 {[%clk 0:02:42]}  Qd6 {[%clk 0:02:15]} 28. Ne5 {[%clk 0:02:43]}  Be6 {[%clk 0:02:14]} 29. Nxc6 {[%clk 0:02:37]}  Rc8 {[%clk 0:02:11]} 30. Qb7 {[%clk 0:02:34]}  Re8 {[%clk 0:02:11]} 31. Bf3 {[%clk 0:02:32]}  Kh8 {[%clk 0:02:08]} 32. Qb5 {[%clk 0:02:31]}  Bd7 {[%clk 0:01:55]} 33. d5 {[%clk 0:02:30]}  h5 {[%clk 0:01:51]} 34. Qc4 {[%clk 0:02:29]}  g6 {[%clk 0:01:25]} 35. Qd4+ {[%clk 0:02:20]}  Kg8 {[%clk 0:01:22]} 36. Qc4 {[%clk 0:02:14]}  Qf6 {[%clk 0:01:22]} 37. Qb4 {[%clk 0:02:14]}  Qa1+ {[%clk 0:01:19]} 38. Kh2 {[%clk 0:02:05]}  Re1 {[%clk 0:01:13]} 39. g4 {[%clk 0:02:04]}  Rh1+ {[%clk 0:01:14]} 40. Kg3 {[%clk 0:01:54]}  h4+ {[%clk 0:00:56]} 41. Kf4 {[%clk 0:01:54]}  Qf6+ {[%clk 0:00:55]} 42. Ke3 {[%clk 0:01:54]}  Qg5+ {[%clk 0:00:55]} 43. Ke2 {[%clk 0:01:52]}  Qc1 {[%clk 0:00:53]} 44. Nd4 {[%clk 0:01:48]}  Rd1 {[%clk 0:00:47]} 45. Nb3 {[%clk 0:01:09]}  Qc2+ {[%clk 0:00:35]} 46. Nd2 {[%clk 0:01:09]}  Bb5+ {[%clk 0:00:28]} 47. Ke3 {[%clk 0:01:09]}  Qd3+ {[%clk 0:00:24]} 48. Kf4 {[%clk 0:01:10]}  Qxd2+ {[%clk 0:00:24]} 0-1


[Site "https://www.chess.com"]

[Event "Titled Tuesday Blitz January 10 Late 2023"]
[White "Kuznetsov, Felix"]
[Black "Klose, Eli"]
[WhiteFideId "34147990"]
[BlackFideId "16242955"]
[WhiteElo "2254"]
[BlackElo "1519"]
[Result "1-0"]
[Round "03"]
[TimeControl "180+2"]
[Date "2023.01.10"]
[WhiteClock "0:00:19"]
[BlackClock "0:00:06"]

1. e4 {[%clk 0:00:00]}  e6 {[%clk 0:00:00]} 2. d4 {[%clk 0:03:00]}  d5 {[%clk 0:02:55]} 3. Nd2 {[%clk 0:03:01]}  Be7 {[%clk 0:02:52]} 4. e5 {[%clk 0:03:01]}  c5 {[%clk 0:02:48]} 5. c3 {[%clk 0:03:00]}  Nc6 {[%clk 0:02:48]} 6. Bd3 {[%clk 0:03:01]}  cxd4 {[%clk 0:02:46]} 7. cxd4 {[%clk 0:03:00]}  Qb6 {[%clk 0:02:42]} 8. Ndf3 {[%clk 0:03:01]}  Bd7 {[%clk 0:02:28]} 9. Ne2 {[%clk 0:02:57]}  Nb4 {[%clk 0:02:26]} 10. Bb1 {[%clk 0:02:57]}  Bb5 {[%clk 0:02:24]} 11. O-O {[%clk 0:02:56]}  Qa6 {[%clk 0:02:23]} 12. Re1 {[%clk 0:02:56]}  Nd3 {[%clk 0:02:23]} 13. Bxd3 {[%clk 0:02:56]}  Bxd3 {[%clk 0:02:23]} 14. Nc3 {[%clk 0:02:56]}  Bf5 {[%clk 0:02:24]} 15. a4 {[%clk 0:02:52]}  Qb6 {[%clk 0:02:21]} 16. a5 {[%clk 0:02:49]}  Qd8 {[%clk 0:02:14]} 17. Qa4+ {[%clk 0:02:42]}  Qd7 {[%clk 0:02:12]} 18. Nb5 {[%clk 0:02:35]}  Rc8 {[%clk 0:02:11]} 19. Nxa7 {[%clk 0:02:30]}  Qxa4 {[%clk 0:01:47]} 20. Rxa4 {[%clk 0:02:27]}  Ra8 {[%clk 0:01:42]} 21. Nb5 {[%clk 0:02:28]}  Bc2 {[%clk 0:01:35]} 22. Ra1 {[%clk 0:02:26]}  Kd7 {[%clk 0:01:35]} 23. Bd2 {[%clk 0:02:21]}  Bd3 {[%clk 0:01:32]} 24. Na3 {[%clk 0:02:16]}  Bxa3 {[%clk 0:01:30]} 25. Rxa3 {[%clk 0:02:12]}  Ba6 {[%clk 0:01:20]} 26. Rc1 {[%clk 0:02:11]}  Ne7 {[%clk 0:01:19]} 27. Ng5 {[%clk 0:02:08]}  Nc6 {[%clk 0:01:16]} 28. Rf3 {[%clk 0:01:53]}  Raf8 {[%clk 0:00:58]} 29. Bc3 {[%clk 0:01:11]}  f6 {[%clk 0:00:57]} 30. exf6 {[%clk 0:01:05]}  gxf6 {[%clk 0:00:55]} 31. Nh3 {[%clk 0:00:59]}  e5 {[%clk 0:00:56]} 32. dxe5 {[%clk 0:00:59]}  fxe5 {[%clk 0:00:56]} 33. Rg3 {[%clk 0:00:52]}  Rhg8 {[%clk 0:00:57]} 34. Ng5 {[%clk 0:00:51]}  h6 {[%clk 0:00:50]} 35. Nh7 {[%clk 0:00:41]}  Rxg3 {[%clk 0:00:33]} 36. Nxf8+ {[%clk 0:00:41]}  Ke8 {[%clk 0:00:16]} 37. hxg3 {[%clk 0:00:41]}  Kxf8 {[%clk 0:00:16]} 38. Re1 {[%clk 0:00:41]}  d4 {[%clk 0:00:17]} 39. Bd2 {[%clk 0:00:40]}  Kg7 {[%clk 0:00:17]} 40. f4 {[%clk 0:00:40]}  Kf6 {[%clk 0:00:16]} 41. fxe5+ {[%clk 0:00:40]}  Nxe5 {[%clk 0:00:12]} 42. Bxh6 {[%clk 0:00:39]}  Nd3 {[%clk 0:00:13]} 43. Rd1 {[%clk 0:00:38]}  Ke5 {[%clk 0:00:12]} 44. Bg7+ {[%clk 0:00:37]}  Ke4 {[%clk 0:00:12]} 45. Rd2 {[%clk 0:00:37]}  Ke3 {[%clk 0:00:13]} 46. Bh6+ {[%clk 0:00:37]}  Ke4 {[%clk 0:00:12]} 47. g4 {[%clk 0:00:35]}  Nc5 {[%clk 0:00:13]} 48. g5 {[%clk 0:00:35]}  Nb3 {[%clk 0:00:12]} 49. Rf2 {[%clk 0:00:28]}  d3 {[%clk 0:00:12]} 50. g6 {[%clk 0:00:27]}  Bc4 {[%clk 0:00:10]} 51. g7 {[%clk 0:00:27]}  Nd4 {[%clk 0:00:09]} 52. Rf8 {[%clk 0:00:27]}  Ne2+ {[%clk 0:00:10]} 53. Kf2 {[%clk 0:00:25]}  Nd4 {[%clk 0:00:08]} 54. g8=Q {[%clk 0:00:25]}  Bxg8 {[%clk 0:00:06]} 55. Rxg8 {[%clk 0:00:22]}  Nf5 {[%clk 0:00:06]} 56. Bd2 {[%clk 0:00:23]}  Kd4 {[%clk 0:00:06]} 57. Rg4+ {[%clk 0:00:19]}  Kc5 {[%clk 0:00:06]} 58. Rg5 {[%clk 0:00:18]}  Kc4 {[%clk 0:00:06]} 59. Rxf5 {[%clk 0:00:19]}  Kb3 {[%clk 0:00:06]} 60. Rc5 {[%clk 0:00:19]} 1-0


[Site "https://www.chess.com"]

[Event "Titled Tuesday Blitz January 10 Late 2023"]
[White "Adewumi, Tanitoluwa"]
[Black "Timmermans, Mark"]
[WhiteFideId "30966396"]
[BlackFideId "1026399"]
[WhiteElo "2283"]
[BlackElo "2392"]
[Result "0-1"]
[Round "03"]
[TimeControl "180+2"]
[Date "2023.01.10"]
[WhiteClock "0:00:01"]
[BlackClock "0:00:48"]

1. e4 {[%clk 0:00:00]}  e5 {[%clk 0:00:00]} 2. Nf3 {[%clk 0:03:00]}  Nc6 {[%clk 0:02:58]} 3. Nc3 {[%clk 0:03:00]}  Nf6 {[%clk 0:02:58]} 4. Bb5 {[%clk 0:03:01]}  Nd4 {[%clk 0:02:58]} 5. O-O {[%clk 0:03:00]}  Nxb5 {[%clk 0:02:58]} 6. Nxb5 {[%clk 0:02:59]}  c6 {[%clk 0:02:55]} 7. Nc3 {[%clk 0:02:59]}  d6 {[%clk 0:02:56]} 8. d4 {[%clk 0:02:58]}  Qc7 {[%clk 0:02:56]} 9. h3 {[%clk 0:02:59]}  Be7 {[%clk 0:02:57]} 10. Be3 {[%clk 0:02:58]}  O-O {[%clk 0:02:57]} 11. a4 {[%clk 0:02:57]}  h6 {[%clk 0:02:54]} 12. Re1 {[%clk 0:02:57]}  Nh7 {[%clk 0:02:44]} 13. Qd3 {[%clk 0:02:57]}  Be6 {[%clk 0:02:41]} 14. a5 {[%clk 0:02:51]}  a6 {[%clk 0:02:29]} 15. d5 {[%clk 0:02:34]}  Bd7 {[%clk 0:02:27]} 16. Bb6 {[%clk 0:02:33]}  Qc8 {[%clk 0:02:25]} 17. dxc6 {[%clk 0:02:30]}  bxc6 {[%clk 0:02:25]} 18. Rad1 {[%clk 0:02:19]}  f5 {[%clk 0:02:26]} 19. Nxe5 {[%clk 0:02:19]}  fxe4 {[%clk 0:02:25]} 20. Nxe4 {[%clk 0:02:17]}  Bf5 {[%clk 0:02:19]} 21. Qb3+ {[%clk 0:02:03]}  d5 {[%clk 0:02:19]} 22. Ng3 {[%clk 0:01:44]}  Bh4 {[%clk 0:02:08]} 23. Nxf5 {[%clk 0:01:35]}  Qxf5 {[%clk 0:01:53]} 24. Nxc6 {[%clk 0:01:13]}  Bxf2+ {[%clk 0:01:54]} 25. Bxf2 {[%clk 0:01:13]}  Qxf2+ {[%clk 0:01:51]} 26. Kh1 {[%clk 0:01:14]}  Kh8 {[%clk 0:01:51]} 27. Ne5 {[%clk 0:01:14]}  Qf5 {[%clk 0:01:48]} 28. Qxd5 {[%clk 0:01:09]}  Rae8 {[%clk 0:01:42]} 29. c3 {[%clk 0:01:04]}  Ng5 {[%clk 0:01:41]} 30. g4 {[%clk 0:00:42]}  Qf6 {[%clk 0:01:39]} 31. Rf1 {[%clk 0:00:27]}  Qxf1+ {[%clk 0:01:33]} 32. Rxf1 {[%clk 0:00:14]}  Rxf1+ {[%clk 0:01:32]} 33. Kg2 {[%clk 0:00:15]}  Re1 {[%clk 0:01:33]} 34. Ng6+ {[%clk 0:00:15]}  Kh7 {[%clk 0:01:29]} 35. Nf4 {[%clk 0:00:14]}  Rf8 {[%clk 0:01:29]} 36. Qd3+ {[%clk 0:00:13]}  Ne4 {[%clk 0:01:29]} 37. Kf3 {[%clk 0:00:12]}  Rf1+ {[%clk 0:01:27]} 38. Qxf1 {[%clk 0:00:06]}  Nd2+ {[%clk 0:01:00]} 39. Ke2 {[%clk 0:00:03]}  Nxf1 {[%clk 0:01:00]} 40. Nd5 {[%clk 0:00:03]}  Ng3+ {[%clk 0:01:00]} 41. Ke3 {[%clk 0:00:02]}  Re8+ {[%clk 0:00:59]} 42. Kd4 {[%clk 0:00:02]}  Ne2+ {[%clk 0:00:53]} 43. Kc5 {[%clk 0:00:02]}  Rc8+ {[%clk 0:00:52]} 44. Kb6 {[%clk 0:00:02]}  Rb8+ {[%clk 0:00:50]} 45. Kxa6 {[%clk 0:00:02]}  Rxb2 {[%clk 0:00:49]} 46. Ka7 {[%clk 0:00:03]}  Rb5 {[%clk 0:00:50]} 47. Nb4 {[%clk 0:00:02]}  Rxa5+ {[%clk 0:00:48]} 48. Kb6 {[%clk 0:00:01]} 0-1


[Site "https://www.chess.com"]

[Event "Titled Tuesday Blitz January 10 Late 2023"]
[White "Rustemov, Alexander"]
[Black "Yang, Kevin"]
[WhiteFideId "4119002"]
[BlackFideId "30908485"]
[WhiteElo "2525"]
[BlackElo "2096"]
[Result "1-0"]
[Round "03"]
[TimeControl "180+2"]
[Date "2023.01.10"]
[WhiteClock "0:00:30"]
[BlackClock "0:00:02"]

1. d4 {[%clk 0:00:00]}  Nf6 {[%clk 0:00:00]} 2. c4 {[%clk 0:03:00]}  e6 {[%clk 0:02:59]} 3. Nf3 {[%clk 0:03:00]}  c5 {[%clk 0:02:58]} 4. d5 {[%clk 0:03:01]}  b5 {[%clk 0:02:55]} 5. Bg5 {[%clk 0:03:00]}  b4 {[%clk 0:02:55]} 6. e4 {[%clk 0:02:59]}  d6 {[%clk 0:02:54]} 7. Bd3 {[%clk 0:02:56]}  Be7 {[%clk 0:02:52]} 8. Bf4 {[%clk 0:02:55]}  e5 {[%clk 0:02:44]} 9. Be3 {[%clk 0:02:41]}  O-O {[%clk 0:02:34]} 10. h3 {[%clk 0:02:38]}  a5 {[%clk 0:02:24]} 11. Nbd2 {[%clk 0:02:37]}  a4 {[%clk 0:02:19]} 12. g4 {[%clk 0:02:36]}  Ne8 {[%clk 0:02:17]} 13. Nf1 {[%clk 0:02:36]}  g6 {[%clk 0:02:12]} 14. Ng3 {[%clk 0:02:36]}  Ng7 {[%clk 0:02:11]} 15. Rg1 {[%clk 0:02:36]}  Nd7 {[%clk 0:02:09]} 16. Bh6 {[%clk 0:02:34]}  Nb6 {[%clk 0:01:58]} 17. Qe2 {[%clk 0:02:32]}  Kh8 {[%clk 0:01:53]} 18. Kf1 {[%clk 0:02:31]}  f6 {[%clk 0:01:25]} 19. Kg2 {[%clk 0:02:30]}  Rf7 {[%clk 0:01:03]} 20. Kh2 {[%clk 0:02:26]}  Bd7 {[%clk 0:01:03]} 21. Rg2 {[%clk 0:02:25]}  Bc8 {[%clk 0:01:00]} 22. Rag1 {[%clk 0:02:24]}  Bd7 {[%clk 0:00:55]} 23. Be3 {[%clk 0:02:23]}  Qf8 {[%clk 0:00:48]} 24. Nd2 {[%clk 0:02:22]}  Qc8 {[%clk 0:00:41]} 25. f4 {[%clk 0:02:21]}  Qd8 {[%clk 0:00:28]} 26. f5 {[%clk 0:02:20]}  g5 {[%clk 0:00:24]} 27. h4 {[%clk 0:02:17]}  gxh4 {[%clk 0:00:24]} 28. Nh1 {[%clk 0:02:13]}  Qc7 {[%clk 0:00:21]} 29. Bh6 {[%clk 0:01:59]}  Rg8 {[%clk 0:00:15]} 30. Qf2 {[%clk 0:01:56]}  Bf8 {[%clk 0:00:15]} 31. Qxh4 {[%clk 0:01:55]}  Ne8 {[%clk 0:00:11]} 32. Be3 {[%clk 0:01:55]}  Qd8 {[%clk 0:00:11]} 33. Nf3 {[%clk 0:01:51]}  Bc8 {[%clk 0:00:11]} 34. Rg3 {[%clk 0:01:44]}  b3 {[%clk 0:00:11]} 35. a3 {[%clk 0:01:43]}  Ba6 {[%clk 0:00:11]} 36. Nd2 {[%clk 0:01:42]}  Rfg7 {[%clk 0:00:11]} 37. Rh3 {[%clk 0:01:41]}  Rf7 {[%clk 0:00:11]} 38. Ng3 {[%clk 0:01:39]}  Rg5 {[%clk 0:00:10]} 39. Nh5 {[%clk 0:01:34]}  Be7 {[%clk 0:00:10]} 40. Bxg5 {[%clk 0:01:29]}  fxg5 {[%clk 0:00:08]} 41. Qf2 {[%clk 0:01:23]}  Nf6 {[%clk 0:00:09]} 42. Kg3 {[%clk 0:01:23]}  Nbd7 {[%clk 0:00:08]} 43. Rgh1 {[%clk 0:01:14]}  Qg8 {[%clk 0:00:08]} 44. Qh2 {[%clk 0:01:13]}  Nf8 {[%clk 0:00:08]} 45. Nxf6 {[%clk 0:00:59]}  Bxf6 {[%clk 0:00:08]} 46. Rh6 {[%clk 0:00:56]}  Bc8 {[%clk 0:00:08]} 47. Nf3 {[%clk 0:00:53]}  Be7 {[%clk 0:00:08]} 48. Qh5 {[%clk 0:00:52]}  Bf6 {[%clk 0:00:08]} 49. Rxf6 {[%clk 0:00:49]}  Rxf6 {[%clk 0:00:08]} 50. Qxg5 {[%clk 0:00:48]}  Qxg5 {[%clk 0:00:07]} 51. Nxg5 {[%clk 0:00:47]}  Kg7 {[%clk 0:00:06]} 52. Ne6+ {[%clk 0:00:48]}  Bxe6 {[%clk 0:00:05]} 53. dxe6 {[%clk 0:00:45]}  h6 {[%clk 0:00:02]} 54. g5 {[%clk 0:00:45]}  hxg5 {[%clk 0:00:03]} 55. Rh5 {[%clk 0:00:34]}  Nh7 {[%clk 0:00:02]} 56. Rxh7+ {[%clk 0:00:35]}  Kxh7 {[%clk 0:00:02]} 57. e7 {[%clk 0:00:30]} 1-0


[Site "https://www.chess.com"]

[Event "Titled Tuesday Blitz January 10 Late 2023"]
[White "Fernandez Garcia, Gumersindo"]
[Black "Tristan, Leonardo"]
[WhiteFideId "24516740"]
[BlackFideId "113816"]
[WhiteElo "2160"]
[BlackElo "2545"]
[Result "1/2-1/2"]
[Round "03"]
[TimeControl "180+2"]
[Date "2023.01.10"]
[WhiteClock "0:00:22"]
[BlackClock "0:00:04"]

1. e4 {[%clk 0:00:00]}  d5 {[%clk 0:00:00]} 2. exd5 {[%clk 0:03:00]}  Qxd5 {[%clk 0:02:56]} 3. Nc3 {[%clk 0:02:58]}  Qa5 {[%clk 0:02:57]} 4. Nf3 {[%clk 0:02:58]}  Nf6 {[%clk 0:02:57]} 5. h3 {[%clk 0:02:57]}  Bf5 {[%clk 0:02:57]} 6. Bc4 {[%clk 0:02:53]}  e6 {[%clk 0:02:55]} 7. O-O {[%clk 0:02:43]}  Be7 {[%clk 0:02:55]} 8. d3 {[%clk 0:02:41]}  c6 {[%clk 0:02:39]} 9. Bd2 {[%clk 0:02:27]}  Qc7 {[%clk 0:02:36]} 10. Qe2 {[%clk 0:02:25]}  h6 {[%clk 0:02:36]} 11. Ne4 {[%clk 0:02:22]}  Nbd7 {[%clk 0:02:34]} 12. Bb3 {[%clk 0:02:20]}  O-O {[%clk 0:02:30]} 13. Nxf6+ {[%clk 0:02:15]}  Nxf6 {[%clk 0:02:29]} 14. Bc3 {[%clk 0:02:13]}  a5 {[%clk 0:02:29]} 15. a3 {[%clk 0:02:13]}  a4 {[%clk 0:02:23]} 16. Ba2 {[%clk 0:02:09]}  Bh7 {[%clk 0:02:22]} 17. Be5 {[%clk 0:02:09]}  Qd8 {[%clk 0:02:14]} 18. Rfe1 {[%clk 0:02:04]}  Ra5 {[%clk 0:02:14]} 19. Bc3 {[%clk 0:01:58]}  Ra8 {[%clk 0:01:48]} 20. Ne5 {[%clk 0:01:57]}  Nd5 {[%clk 0:01:44]} 21. Bxd5 {[%clk 0:01:55]}  Qxd5 {[%clk 0:01:42]} 22. Qg4 {[%clk 0:01:47]}  Bf6 {[%clk 0:01:35]} 23. Re3 {[%clk 0:01:37]}  Bf5 {[%clk 0:01:33]} 24. Qc4 {[%clk 0:01:23]}  Qxc4 {[%clk 0:01:31]} 25. Nxc4 {[%clk 0:01:17]}  Bxc3 {[%clk 0:01:30]} 26. bxc3 {[%clk 0:01:17]}  b5 {[%clk 0:01:26]} 27. Ne5 {[%clk 0:01:18]}  Rac8 {[%clk 0:01:23]} 28. Rb1 {[%clk 0:01:18]}  Rfd8 {[%clk 0:00:55]} 29. c4 {[%clk 0:01:14]}  f6 {[%clk 0:00:54]} 30. Nf3 {[%clk 0:01:13]}  bxc4 {[%clk 0:00:49]} 31. g4 {[%clk 0:00:57]}  Bg6 {[%clk 0:00:49]} 32. Nh4 {[%clk 0:00:57]}  Bh7 {[%clk 0:00:30]} 33. Rxe6 {[%clk 0:00:49]}  cxd3 {[%clk 0:00:29]} 34. cxd3 {[%clk 0:00:44]}  Bxd3 {[%clk 0:00:30]} 35. Rb7 {[%clk 0:00:41]}  Re8 {[%clk 0:00:14]} 36. Rd6 {[%clk 0:00:40]}  Rcd8 {[%clk 0:00:13]} 37. Rbd7 {[%clk 0:00:37]}  Rxd7 {[%clk 0:00:14]} 38. Rxd7 {[%clk 0:00:24]}  Re1+ {[%clk 0:00:14]} 39. Kh2 {[%clk 0:00:25]}  Be4 {[%clk 0:00:11]} 40. Rd4 {[%clk 0:00:23]}  Bd5 {[%clk 0:00:11]} 41. Nf5 {[%clk 0:00:22]}  Rh1+ {[%clk 0:00:06]} 42. Kg3 {[%clk 0:00:20]}  Rg1+ {[%clk 0:00:04]} 43. Kf4 {[%clk 0:00:20]}  g5+ {[%clk 0:00:05]} 44. Ke3 {[%clk 0:00:21]}  Re1+ {[%clk 0:00:04]} 45. Kd2 {[%clk 0:00:21]}  Rh1 {[%clk 0:00:04]} 46. Rxa4 {[%clk 0:00:21]}  Rxh3 {[%clk 0:00:04]} 47. Ne3 {[%clk 0:00:20]}  Rf3 {[%clk 0:00:04]} 48. Nxd5 {[%clk 0:00:21]}  cxd5 {[%clk 0:00:03]} 49. Ke2 {[%clk 0:00:20]}  Rb3 {[%clk 0:00:03]} 50. Ra7 {[%clk 0:00:21]}  Kf8 {[%clk 0:00:03]} 51. f3 {[%clk 0:00:20]}  d4 {[%clk 0:00:02]} 52. a4 {[%clk 0:00:20]}  Ra3 {[%clk 0:00:03]} 53. a5 {[%clk 0:00:20]}  Kg8 {[%clk 0:00:03]} 54. a6 {[%clk 0:00:20]}  Kh8 {[%clk 0:00:03]} 55. Kf2 {[%clk 0:00:20]}  Kg8 {[%clk 0:00:03]} 56. Ke2 {[%clk 0:00:21]}  Kh8 {[%clk 0:00:04]} 57. Kf2 {[%clk 0:00:21]}  Kg8 {[%clk 0:00:04]} 58. Ke2 {[%clk 0:00:22]} 1/2-1/2


[Site "https://www.chess.com"]

[Event "Titled Tuesday Blitz January 10 Late 2023"]
[White "Carbone, Diego"]
[Black "Sarana, Alexey"]
[WhiteFideId "3002179"]
[BlackFideId "24133795"]
[WhiteElo "2336"]
[BlackElo "2685"]
[Result "0-1"]
[Round "03"]
[TimeControl "180+2"]
[Date "2023.01.10"]
[WhiteClock "0:00:05"]
[BlackClock "0:00:38"]

1. d4 {[%clk 0:00:00]}  Nf6 {[%clk 0:00:00]} 2. c4 {[%clk 0:03:00]}  e6 {[%clk 0:02:59]} 3. g3 {[%clk 0:03:01]}  Bb4+ {[%clk 0:02:59]} 4. Bd2 {[%clk 0:03:01]}  Be7 {[%clk 0:02:58]} 5. Bg2 {[%clk 0:03:01]}  d5 {[%clk 0:02:58]} 6. Nf3 {[%clk 0:03:00]}  c6 {[%clk 0:02:58]} 7. Qc2 {[%clk 0:03:01]}  Nbd7 {[%clk 0:02:58]} 8. O-O {[%clk 0:03:01]}  O-O {[%clk 0:02:57]} 9. Bf4 {[%clk 0:03:01]}  h6 {[%clk 0:02:56]} 10. Rd1 {[%clk 0:03:01]}  a5 {[%clk 0:02:56]} 11. Nc3 {[%clk 0:02:54]}  dxc4 {[%clk 0:02:54]} 12. Ne5 {[%clk 0:02:43]}  Nxe5 {[%clk 0:02:53]} 13. dxe5 {[%clk 0:02:32]}  Nd5 {[%clk 0:02:45]} 14. Ne4 {[%clk 0:02:33]}  b5 {[%clk 0:02:45]} 15. b3 {[%clk 0:02:08]}  Ba6 {[%clk 0:02:44]} 16. bxc4 {[%clk 0:02:06]}  bxc4 {[%clk 0:02:38]} 17. Nd6 {[%clk 0:02:06]}  Qb6 {[%clk 0:02:38]} 18. Nxc4 {[%clk 0:02:05]}  Qc5 {[%clk 0:02:25]} 19. Rac1 {[%clk 0:02:01]}  Nb4 {[%clk 0:02:24]} 20. Qe4 {[%clk 0:01:59]}  Nxa2 {[%clk 0:02:16]} 21. Be3 {[%clk 0:01:51]}  Qb4 {[%clk 0:02:15]} 22. Bd2 {[%clk 0:01:48]}  Qa4 {[%clk 0:02:06]} 23. Rc2 {[%clk 0:01:48]}  Nb4 {[%clk 0:02:02]} 24. Bxb4 {[%clk 0:01:37]}  Qxb4 {[%clk 0:01:43]} 25. Rdc1 {[%clk 0:01:37]}  Rfd8 {[%clk 0:01:41]} 26. Qxc6 {[%clk 0:01:30]}  Bb5 {[%clk 0:01:38]} 27. Qxa8 {[%clk 0:01:27]}  Rxa8 {[%clk 0:01:18]} 28. Bxa8 {[%clk 0:01:20]}  a4 {[%clk 0:01:16]} 29. Bf3 {[%clk 0:01:21]}  g6 {[%clk 0:01:16]} 30. Nd6 {[%clk 0:01:15]}  Bxd6 {[%clk 0:01:15]} 31. exd6 {[%clk 0:01:11]}  Qxd6 {[%clk 0:01:09]} 32. Bc6 {[%clk 0:01:12]}  Bxc6 {[%clk 0:01:10]} 33. Rxc6 {[%clk 0:01:12]}  Qa3 {[%clk 0:00:58]} 34. R1c2 {[%clk 0:01:13]}  h5 {[%clk 0:00:58]} 35. h4 {[%clk 0:01:04]}  Qb3 {[%clk 0:00:54]} 36. f3 {[%clk 0:01:03]}  a3 {[%clk 0:00:51]} 37. Rc8+ {[%clk 0:00:26]}  Kg7 {[%clk 0:00:48]} 38. R8c3 {[%clk 0:00:19]}  Qb1+ {[%clk 0:00:48]} 39. Rc1 {[%clk 0:00:15]}  a2 {[%clk 0:00:47]} 40. Rxb1 {[%clk 0:00:14]}  axb1=Q+ {[%clk 0:00:48]} 41. Kg2 {[%clk 0:00:06]}  Qe1 {[%clk 0:00:49]} 42. Re3 {[%clk 0:00:07]}  Qd2 {[%clk 0:00:48]} 43. Kf2 {[%clk 0:00:06]}  Qd4 {[%clk 0:00:48]} 44. f4 {[%clk 0:00:06]}  f6 {[%clk 0:00:47]} 45. Kf3 {[%clk 0:00:06]}  Kf7 {[%clk 0:00:45]} 46. Rd3 {[%clk 0:00:07]}  Qc5 {[%clk 0:00:45]} 47. Rd7+ {[%clk 0:00:06]}  Ke8 {[%clk 0:00:45]} 48. Rd3 {[%clk 0:00:06]}  Qf5 {[%clk 0:00:45]} 49. Re3 {[%clk 0:00:06]}  Qh3 {[%clk 0:00:45]} 50. Kf2 {[%clk 0:00:04]}  Ke7 {[%clk 0:00:45]} 51. Rd3 {[%clk 0:00:04]}  Qh2+ {[%clk 0:00:44]} 52. Kf3 {[%clk 0:00:04]}  Qg1 {[%clk 0:00:44]} 53. Re3 {[%clk 0:00:04]}  Qf1+ {[%clk 0:00:44]} 54. Ke4 {[%clk 0:00:05]}  f5+ {[%clk 0:00:42]} 55. Kd3 {[%clk 0:00:05]}  Qd1+ {[%clk 0:00:38]} 56. Kc3 {[%clk 0:00:05]}  Kf6 {[%clk 0:00:38]} 0-1


[Site "https://www.chess.com"]

[Event "Titled Tuesday Blitz January 10 Late 2023"]
[White "Aguilar, Juan"]
[Black "Mosadeghpour, Masoud"]
[WhiteFideId "3800091"]
[BlackFideId "12519278"]
[WhiteElo "2254"]
[BlackElo "2472"]
[Result "0-1"]
[Round "03"]
[TimeControl "180+2"]
[Date "2023.01.10"]
[WhiteClock "0:00:08"]
[BlackClock "0:02:12"]

1. g3 {[%clk 0:00:00]}  Nf6 {[%clk 0:00:00]} 2. Bg2 {[%clk 0:03:00]}  d5 {[%clk 0:02:58]} 3. d3 {[%clk 0:03:01]}  g6 {[%clk 0:02:58]} 4. Nf3 {[%clk 0:03:01]}  Bg7 {[%clk 0:02:58]} 5. O-O {[%clk 0:03:02]}  O-O {[%clk 0:02:59]} 6. c3 {[%clk 0:03:02]}  c5 {[%clk 0:03:00]} 7. Qa4 {[%clk 0:03:00]}  Nc6 {[%clk 0:03:00]} 8. Qh4 {[%clk 0:02:59]}  e5 {[%clk 0:03:00]} 9. Bh6 {[%clk 0:03:00]}  Ng4 {[%clk 0:02:59]} 10. Bxg7 {[%clk 0:02:59]}  Kxg7 {[%clk 0:02:58]} 11. Qxd8 {[%clk 0:02:56]}  Rxd8 {[%clk 0:02:58]} 12. Nbd2 {[%clk 0:02:50]}  Be6 {[%clk 0:02:59]} 13. Ng5 {[%clk 0:02:50]}  h6 {[%clk 0:02:59]} 14. Nxe6+ {[%clk 0:02:42]}  fxe6 {[%clk 0:02:54]} 15. a4 {[%clk 0:02:41]}  Nf6 {[%clk 0:02:55]} 16. Rfb1 {[%clk 0:02:40]}  Rd7 {[%clk 0:02:54]} 17. a5 {[%clk 0:02:37]}  Rc7 {[%clk 0:02:51]} 18. a6 {[%clk 0:02:30]}  b6 {[%clk 0:02:50]} 19. b4 {[%clk 0:02:28]}  cxb4 {[%clk 0:02:49]} 20. cxb4 {[%clk 0:02:28]}  Rac8 {[%clk 0:02:49]} 21. Bh3 {[%clk 0:02:27]}  Kf7 {[%clk 0:02:49]} 22. e3 {[%clk 0:02:08]}  Nb8 {[%clk 0:02:47]} 23. Nf3 {[%clk 0:02:00]}  Nbd7 {[%clk 0:02:43]} 24. Bf1 {[%clk 0:01:54]}  Rc2 {[%clk 0:02:43]} 25. h3 {[%clk 0:01:23]}  g5 {[%clk 0:02:39]} 26. Ne1 {[%clk 0:01:22]}  R2c3 {[%clk 0:02:36]} 27. Be2 {[%clk 0:01:13]}  Ke7 {[%clk 0:02:36]} 28. Nf3 {[%clk 0:01:01]}  Ne8 {[%clk 0:02:34]} 29. Kf1 {[%clk 0:00:52]}  Nd6 {[%clk 0:02:32]} 30. Ke1 {[%clk 0:00:41]}  Kf6 {[%clk 0:02:32]} 31. Kd1 {[%clk 0:00:37]}  Nb8 {[%clk 0:02:31]} 32. d4 {[%clk 0:00:35]}  Nd7 {[%clk 0:02:25]} 33. Rc1 {[%clk 0:00:32]}  Ne4 {[%clk 0:02:19]} 34. Rxc3 {[%clk 0:00:31]}  Nxc3+ {[%clk 0:02:16]} 35. Ke1 {[%clk 0:00:26]}  e4 {[%clk 0:02:16]} 36. Nd2 {[%clk 0:00:26]}  Nxe2 {[%clk 0:02:14]} 37. Kxe2 {[%clk 0:00:23]}  e5 {[%clk 0:02:14]} 38. Nb3 {[%clk 0:00:22]}  Rc4 {[%clk 0:02:15]} 39. dxe5+ {[%clk 0:00:18]}  Nxe5 {[%clk 0:02:13]} 40. b5 {[%clk 0:00:17]}  Rc2+ {[%clk 0:02:13]} 41. Kd1 {[%clk 0:00:14]}  Rxf2 {[%clk 0:02:13]} 42. Nd4 {[%clk 0:00:08]}  Rf1+ {[%clk 0:02:12]} 0-1


[Site "https://www.chess.com"]